Workbook

Sheet Výpočetní program
B2: PROGRAM PRO STANOVENÍ STŘEDNÍ AERODYNAMICKÉ TĚTIVY KŘÍDLA OBECNÉHO PŮDORYSU
C5: Definujte typ křídla | F5: elipsa | H5: Zadejte půdorysný tvar vašeho křídla. V případě složeného křídla z více částí program předpokládá, že se "typ křídla" (jeho geometrické řazení) nemění. Předpokládá se pravoúhlý trojúhelník = delta křídlo)
H6: Možné vstupy: obdélník, lichoběžník, trojúhelník, elipsa
C8: Zadejte počet částí křídla P | F8: 1 | H8: Křídlo je buď jednoduché (neměnná geom.) nebo složené (proměnná geom.). Složené křídlo je nutné rozdělit na více jednoduchých subkřídel v místech, kde se geometrie mění viz. obrázek.
H9: Možné vstupy (počet subkřídel): 1, 2, 3 ,4
C11: Zadejte parametry křídla :
C13: Rozpětí 𝑙 | F13: 500 | H13: Změňte hodnotu 0 na vaši hodnotu.
C15: Hloubka u kořene křídla 𝑏0 | F15: 100 | H15: Změňte hodnotu 0 na vaši hodnotu.
C16: Hloubka subkřídla 𝑏1 | F16: 0 | H16: Změňte hodnotu 0 na vaši hodnotu. | K16: (zajedte 1E-30)
C17: Hloubka subkřídla 𝑏2 | F17: 0 | H17: Změňte hodnotu 0 na vaši hodnotu.
C18: Hloubka subkřídla 𝑏3 | F18: 0 | H18: Změňte hodnotu 0 na vaši hodnotu.
C19: Hloubka subkřídla 𝑏4 | F19: 0 | H19: Změňte hodnotu 0 na vaši hodnotu.
C21: Šípovitost -> vzdálenost nb1 | F21: 0 | H21: Změňte hodnotu 0 na vaši hodnotu. | K21: (je rovna b0)
C22: Šípovitost -> vzdálenost nb2 | F22: 0 | H22: Změňte hodnotu 0 na vaši hodnotu.
C23: Šípovitost -> vzdálenost nb3 | F23: 0 | H23: Změňte hodnotu 0 na vaši hodnotu.
C24: Šípovitost -> vzdálenost nb4 | F24: 0 | H24: Změňte hodnotu 0 na vaši hodnotu.
C26: Šípovitost -> vzdálenost zb1 | F26: 0 | H26: Změňte hodnotu 0 na vaši hodnotu. | K26: (je rovna l/2)
C27: Šípovitost -> vzdálenost zb2 | F27: 0 | H27: Změňte hodnotu 0 na vaši hodnotu.
C28: Šípovitost -> vzdálenost zb3 | F28: 0 | H28: Změňte hodnotu 0 na vaši hodnotu.
C29: Šípovitost -> vzdálenost zb4 | F29: 0 | H29: Změňte hodnotu 0 na vaši hodnotu.
C31: Vypočtená hodnota ploch subkřídel :
C33: Plocha křídla S1 | F33: =O42 -> 0 | H33: Plocha křídla a plochy jeho částí pro kontrolu. viz. obrázek.
C34: Plocha křídla S2 | F34: =O43 -> 0
C35: Plocha křídla S3 | F35: =O44 -> 0
C36: Plocha křídla S4 | F36: =O45 -> 0
C37: Plocha křídla S (celková) | F37: =_xlfn.IFS(F5="elipsa",PI()/4*F15*F13,SUM(F33:F36),SUM(F33:F36)) -> 39269.90817
C39: VÝSLEDNÉ HODNOTY DEFINUJÍCÍ STŘEDNÍ AERODYNAMICKOU TĚTIVU
C41: Střední aerodynamická hloubka | F41: =_xlfn.IFS(F5="elipsa",8/(3*PI())*F15,(J42*F33+J43*F34+J44*F35+J45*F36)/(F33+F34+F35+F36),(J42*F33+J43*F34+J44*F35+J45*F36)/(F33+F34+F35+F36)) -> 84.88263632 | H41: Pole | I41: zúžení^-1 | J41: bSAT | K41: zSAT | L41: xSAT | M41: zSAT gl. | N41: xSAT gl. | O41: Plocha
C42: Poloha SAT na rozpětí | F42: =_xlfn.IFS(F5="elipsa",0.4244*F13/2,(M42*F33+M43*F34+M44*F35+M45*F36)/(F33+F34+F35+F36),(M42*F33+M43*F34+M44*F35+M45*F36)/(F33+F34+F35+F36)) -> 106.1 | H42: 1 | I42: =IFERROR(F16/F15,0) -> 0 | J42: =_xlfn.IFS(I42=0,0,(2/3)*F15*((1+I42+I42^2)/(1+I42)),(2/3)*F15*((1+I42+I42^2)/(1+I42))) -> 0 | K42: =_xlfn.IFS(I42=0,0,(2*F26)/6*(1+2*I42)/(1+I42),(2*F26)/6*(1+2*I42)/(1+I42)) -> 0 | L42: =IFERROR(K42/F26*F21,0) -> 0 | M42: =_xlfn.IFS(K42=0,0,K42,K42) -> 0 | N42: =_xlfn.IFS(L42=0,0,L42,L42) -> 0 | O42: =IFERROR(_xlfn.IFS(IFERROR(F15*(F26-F25)+((F16-F15)/2)*(F26-F25),0)<0,0),IFERROR(F15*(F26-F25)+((F16-F15)/2)*(F26-F25),0)) -> 0
C43: Vzdálenost náběžné hrany | F43: =_xlfn.IFS(F5="elipsa","viz. Obr.1",F5="obdélník",0,(N42*F33+N43*F34+N44*F35+N45*F36)/(F33+F34+F35+F36),(N42*F33+N43*F34+N44*F35+N45*F36)/(F33+F34+F35+F36)) -> viz. Obr.1 | H43: 2 | I43: =IFERROR(F17/F16,0) -> 0 | J43: =_xlfn.IFS(I43=0,0,(2/3)*F16*((1+I43+I43^2)/(1+I43)),(2/3)*F16*((1+I43+I43^2)/(1+I43))) -> 0 | K43: =_xlfn.IFS(I43=0,0,(2*F27-2*F26)/6*(1+2*I43)/(1+I43),(2*F27-2*F26)/6*(1+2*I43)/(1+I43)) -> 0 | L43: =IFERROR(K43/(F27-F26)*(F22-F21),0) -> 0 | M43: =_xlfn.IFS(K43=0,0,K43+F26,K43+F26) -> 0 | N43: =_xlfn.IFS(L43=0,0,L43+F21,L43+F21) -> 0 | O43: =IFERROR(_xlfn.IFS(IFERROR(F16*(F27-F26)+((F17-F16)/2)*(F27-F26),0)<0,0),IFERROR(F16*(F27-F26)+((F17-F16)/2)*(F27-F26),0)) -> 0
H44: 3 | I44: =IFERROR(F18/F17,0) -> 0 | J44: =_xlfn.IFS(I44=0,0,(2/3)*F17*((1+I44+I44^2)/(1+I44)),(2/3)*F17*((1+I44+I44^2)/(1+I44))) -> 0 | K44: =_xlfn.IFS(I44=0,0,(2*F28-2*F27)/6*(1+2*I44)/(1+I44),(2*F28-2*F27)/6*(1+2*I44)/(1+I44)) -> 0 | L44: =IFERROR(K44/(F28-F27)*(F23-F22),0) -> 0 | M44: =_xlfn.IFS(K44=0,0,K44+F27,K44+F27) -> 0 | N44: =_xlfn.IFS(L44=0,0,L44+F22,L44+F22) -> 0 | O44: =IFERROR(_xlfn.IFS(IFERROR(F17*(F28-F27)+((F18-F17)/2)*(F28-F27),0)<0,0),IFERROR(F17*(F28-F27)+((F18-F17)/2)*(F28-F27),0)) -> 0
C45: Zobrazit mezivýpočty? (zadejte "ano") | F45: ano | H45: 4 | I45: =IFERROR(F19/F18,0) -> 0 | J45: =_xlfn.IFS(I45=0,0,(2/3)*F18*((1+I45+I45^2)/(1+I45)),(2/3)*F18*((1+I45+I45^2)/(1+I45))) -> 0 | K45: =_xlfn.IFS(I45=0,0,(2*F29-2*F28)/6*(1+2*I45)/(1+I45),(2*F29-2*F28)/6*(1+2*I45)/(1+I45)) -> 0 | L45: =IFERROR(K45/(F29-F28)*(F24-F23),0) -> 0 | M45: =_xlfn.IFS(K45=0,0,K45+F28,K45+F28) -> 0 | N45: =_xlfn.IFS(L45=0,0,L45+F23,L45+F23) -> 0 | O45: =IFERROR(_xlfn.IFS(IFERROR(F18*(F29-F28)+((F19-F18)/2)*(F29-F28),0)<0,0),IFERROR(F18*(F29-F28)+((F19-F18)/2)*(F29-F28),0)) -> 0
C46: (nezobrazuje pro elipsu)

Sheet Obecná metoda
B2: PROGRAM PRO STANOVENÍ STŘEDNÍ AERODYNAMICKÉ TĚTIVY KŘÍDLA OBECNÉHO PŮDORYSU
C5: SOUŘADNICE KŘÍDLA | G5: PLOŠNÉ ROZDĚLENÍ | J5: MEZIVÝPOČET
C6: z | D6: x1 | E6: x2 | G6: z | H6: x=x1-x2 | J6: Hloubka b(x) | K6: chyba
C7: 0 | D7: 0 | E7: 100 | G7: =IF(COUNT(C7)=1,C7,#N/A) -> 0 | H7: =IF(COUNT(D7:E7)=2,ABS(D7-E7),#N/A) -> 100 | J7: =-1.34393815971233E-11*G7^6 + 9.02408723343472E-09*G7^5 - 2.28030818090474E-06*G7^4 + 0.000264659016695035*G7^3 - 0.0147099242574313*G7^2 + 0.267703381712636*G7 + 99.2306019728348 -> 99.23060197 | K7: =IFERROR(ABS((H7-J7)/J7),"") -> 0.007753636599 | M7: KONTROLA POUŽITÉ REGRESE | S7: -0,000000000013439381597123300000*G7^6 + 0,000000009024087233434720000000*G7^5 - 0,000002280308180904740000000000*G7^4 + 0,000264659016695035000000000000*G7^3 - 0,014709924257431300000000000000*G7^2 + 0,267703381712636000000000000000*G7 + 99,230601972834800000000000000000
C8: 10 | D8: 0.04001601281 | E8: 99.95998399 | G8: =IF(COUNT(C8)=1,C8,#N/A) -> 10 | H8: =IF(COUNT(D8:E8)=2,ABS(D8-E8),#N/A) -> 99.91996797 | J8: =-1.34393815971233E-11*G8^6 + 9.02408723343472E-09*G8^5 - 2.28030818090474E-06*G8^4 + 0.000264659016695035*G8^3 - 0.0147099242574313*G8^2 + 0.267703381712636*G8 + 99.2306019728348 -> 100.6793883 | K8: =IFERROR(ABS((H8-J8)/J8),"") -> 0.007542956976
C9: 20 | D9: 0.1602568225 | E9: 99.83974318 | G9: 20 | H9: 99.67948636 | J9: 100.4811397 | K9: 0.007978147291 | M9: Do bílého pole zadejte maximální procentuální chybu regrese, kterou jste ochotni připustit.
C10: 30 | D10: 0.361305416 | E10: 99.63869458 | G10: 30 | H10: 99.27738917 | J10: 99.53100343 | K10: 0.002548093063
C11: 40 | D11: 0.644149283 | E11: 99.35585072 | G11: 40 | H11: 98.71170143 | J11: 98.37246538 | K11: 0.003448485836
C12: 50 | D12: 1.010205144 | E12: 98.98979486 | G12: 50 | H12: 97.97958971 | J12: 97.28144829 | K12: 0.007176511344 | M12: Tolerovaná hodnota chyby | O12: 0.0001
C13: 60 | D13: 1.461355602 | E13: 98.5386444 | G13: 60 | H13: 97.0772888 | J13: 96.34073358 | K13: 0.007645314639 | M13: Maximální dosažená chyba | O13: =MAX(K7:K2007) -> 1
C14: 70 | D14: 2 | E14: 98 | G14: 70 | H14: 96 | J14: 95.50470674 | K14: 0.005186061242
C15: 80 | D15: 2.629122871 | E15: 97.37087713 | G15: 80 | H15: 94.74175426 | J15: 94.65442652 | K15: 0.0009225954287 | M15: =_xlfn.IFS(O13<O12,"Použili jste vhodnou regresi, výpočet dosahuje maximálně vámi tolerovanou chybu.",O13>O12,"Nepřesný výsledek. Změňte řád polynomu regrese nebo vytvořte hustší síť souřadnic definujících profil křídla.",O13=O12,"Použili jste vhodnou regresi, výpočet dosahuje maximálně vámi tolerovanou chybu.") -> Nepřesný výsledek. Změňte řád polynomu regrese nebo vytvořte hustší síť souřadnic definujících profil křídla.
C16: 90 | D16: 3.352384841 | E16: 96.64761516 | G16: 90 | H16: 93.29523032 | J16: 93.64301757 | K16: 0.003713968902
C17: 100 | D17: 4.17424305 | E17: 95.82575695 | G17: 100 | H17: 91.6515139 | J17: 92.33138691 | K17: 0.007363400846
C18: 110 | D18: 5.100111359 | E18: 94.89988864 | G18: 110 | H18: 89.79977728 | J18: 90.6142639 | K18: 0.008988503411
C19: 120 | D19: 6.136575601 | E19: 93.8634244 | G19: 120 | H19: 87.7268488 | J19: 88.43656396 | K19: 0.008025132665
C20: 130 | D20: 7.291686992 | E20: 92.70831301 | G20: 130 | H20: 85.41662602 | J20: 85.80007584 | K20: 0.004469108268 | M20: VÝPOČET STŘEDNÍ AERODYNAMICKÉ HLOUBKY bSAT
C21: 140 | D21: 8.575369646 | E21: 91.42463035 | G21: 140 | H21: 82.84926071 | J21: 82.76047267 | K21: 0.001072831438
C22: 150 | D22: 10 | E22: 90 | G22: 150 | H22: 80 | J22: 79.41464648 | K22: 0.007370850863
C23: 160 | D23: 11.58125458 | E23: 88.41874542 | G23: 160 | H23: 76.83749085 | J23: 75.87836653 | K23: 0.01264028687
C24: 170 | D24: 13.33939444 | E24: 86.66060556 | G24: 170 | H24: 73.32121112 | J24: 72.25426116 | K24: 0.01476660264
C25: 180 | D25: 15.30129685 | E25: 84.69870315 | G25: 180 | H25: 69.39740629 | J25: 68.59012337 | K25: 0.01176966719
C26: 190 | D26: 17.50384638 | E26: 82.49615362 | G26: 190 | H26: 64.99230724 | J26: 64.82754001 | K26: 0.002541623938 | O26: =-1.34393815971233E-11*Z1^6 + 9.02408723343472E-09*Z1^5 - 2.28030818090474E-06*Z1^4 + 0.000264659016695035*Z1^3 - 0.0147099242574313*Z1^2 + 0.267703381712636*Z1 + 99.2306019728348 -> 99.23060197 | S26: -0,000000000013439381597123300000*z1^6 + 0,000000009024087233434720000000*z1^5 - 0,000002280308180904740000000000*z1^4 + 0,000264659016695035000000000000*z1^3 - 0,014709924257431300000000000000*z1^2 + 0,267703381712636000000000000000*z1 + 99,230601972834800000000000000000
C27: 200 | D27: 20 | E27: 80 | G27: 200 | H27: 60 | J27: 60.74084461 | K27: 0.0121968112
C28: 210 | D28: 22.87068007 | E28: 77.12931993 | G28: 210 | H28: 54.25863987 | J28: 55.86639388 | K28: 0.02877855366 | O28: =6.71969079906456E-12*Z1^6 - 4.51204361704262E-09*Z1^5 + 1.14015409044543E-06*Z1^4 - 0.000132329508252482*Z1^3 + 0.00735496209176745*Z1^2 - 0.13385168628156*Z1 + 0.384698812573333 -> 0.3846988126 | S28: 0,000000000006719690799064560000*z1^6 - 0,000000004512043617042620000000*z1^5 + 0,000001140154090445430000000000*z1^4 - 0,000132329508252482000000000000*z1^3 + 0,007354962091767450000000000000*z1^2 - 0,133851686281560000000000000000*z1 + 0,384698812573333000000000000000
C29: 220 | D29: 26.25131583 | E29: 73.74868417 | G29: 220 | H29: 47.49736835 | J29: 49.4221678 | K29: 0.03894607495 | S29: 0,000000000006719690799064560000*G7^6 - 0,000000004512043617042620000000*G7^5 + 0,000001140154090445430000000000*G7^4 - 0,000132329508252482000000000000*G7^3 + 0,007354962091767450000000000000*G7^2 - 0,133851686281560000000000000000*G7 + 0,384698812573333000000000000000
C30: 230 | D30: 30.40408206 | E30: 69.59591794 | G30: 230 | H30: 39.19183588 | J30: 40.21769344 | K30: 0.0255076179 | L30: NEMÁTE K DISPOZICI FUNKCI QADF(), PŘEJDĚTE NA LIST "INTEGRACE".
C31: 235 | D31: 32.94127789 | E31: 67.05872211 | G31: 235 | H31: 34.11744422 | J31: 34.07230397 | K31: 0.001324836878
C32: 237.5 | D32: 34.387505 | E32: 65.612495 | G32: 237.5 | H32: 31.22498999 | J32: 30.50319969 | M32: Horní mez integrálů (= polovině rozpětí) | O32: =MAX(C7:C121) -> 250
C33: 240 | D33: 36 | E33: 64 | G33: 240 | H33: 28 | J33: 26.55429236 | K33: 0.0544434631 | M33: Plocha křídla (získaná integrací b(z)) | O33: =QUADF(O26,Z1,0,O32) -> 
C34: 242.5 | D34: 37.84475422 | E34: 62.15524578 | G34: 242.5 | H34: 24.31049156 | J34: 22.18552373 | K34: 0.09578172961
C35: 245 | D35: 40.05012563 | E35: 59.94987437 | G35: 245 | H35: 19.89974874 | J35: 17.35396351 | K35: 0.146697625 | M35: Střední aerodynamická hloubka | O35: =IFERROR(2/O33*O41/2, "list Integrace") -> list Integrace
C36: 247.5 | D36: 42.94663201 | E36: 57.05336799 | G36: 247.5 | H36: 14.10673598 | J36: 12.01368725 | K36: 0.1742220095 | M36: Poloha SAT na rozpětí | O36: =IFERROR(2/O33*O42/2,"list Integrace") -> list Integrace
C37: 249 | D37: 45.53233842 | E37: 54.46766158 | G37: 249 | H37: 8.935323161 | J37: 8.545069317 | K37: 0.04567006186 | M37: Vzdálenost náběžné hrany | O37: =IFERROR(2/O33*O43/2,"list Integrace") -> list Integrace
C38: 250 | D38: 50 | E38: 50 | G38: 250 | H38: 0 | J38: 6.115651678 | K38: 1
M39: Zobrazit mezivýpočty? (vepište "ano") | O39: ano
M41: Integrál z b(z)^2 | O41: =QUADF(O26^2,Z1,0,O32) -> 
M42: Integrál z b(z)*z | O42: =QUADF(O26*Z1,Z1,0,O32) -> 
M43: Integrál z b(z)*x(z) | O43: =QUADF(O26*O28,Z1,0,O32) -> 
G72: =IF(COUNT(C72)=1,C72,#N/A) ->  | H72: =IF(COUNT(D72:E72)=2,ABS(D72-E72),#N/A) -> 
K73: =IFERROR(ABS((H73-J73)/J73),"") -> 
G136: =IF(COUNT(C136)=1,C136,#N/A) ->  | H136: =IF(COUNT(D136:E136)=2,ABS(D136-E136),#N/A) -> 
K137: =IFERROR(ABS((H137-J137)/J137),"") -> 
G200: =IF(COUNT(C200)=1,C200,#N/A) ->  | H200: =IF(COUNT(D200:E200)=2,ABS(D200-E200),#N/A) -> 
K201: =IFERROR(ABS((H201-J201)/J201),"") -> 
G264: =IF(COUNT(C264)=1,C264,#N/A) ->  | H264: =IF(COUNT(D264:E264)=2,ABS(D264-E264),#N/A) -> 
K265: =IFERROR(ABS((H265-J265)/J265),"") -> 
G328: =IF(COUNT(C328)=1,C328,#N/A) ->  | H328: =IF(COUNT(D328:E328)=2,ABS(D328-E328),#N/A) -> 
K329: =IFERROR(ABS((H329-J329)/J329),"") -> 
G392: =IF(COUNT(C392)=1,C392,#N/A) ->  | H392: =IF(COUNT(D392:E392)=2,ABS(D392-E392),#N/A) -> 
K393: =IFERROR(ABS((H393-J393)/J393),"") -> 
G456: =IF(COUNT(C456)=1,C456,#N/A) ->  | H456: =IF(COUNT(D456:E456)=2,ABS(D456-E456),#N/A) -> 
K457: =IFERROR(ABS((H457-J457)/J457),"") -> 
G520: =IF(COUNT(C520)=1,C520,#N/A) ->  | H520: =IF(COUNT(D520:E520)=2,ABS(D520-E520),#N/A) -> 
K521: =IFERROR(ABS((H521-J521)/J521),"") -> 
G584: =IF(COUNT(C584)=1,C584,#N/A) ->  | H584: =IF(COUNT(D584:E584)=2,ABS(D584-E584),#N/A) -> 
K585: =IFERROR(ABS((H585-J585)/J585),"") -> 
G648: =IF(COUNT(C648)=1,C648,#N/A) ->  | H648: =IF(COUNT(D648:E648)=2,ABS(D648-E648),#N/A) -> 
K649: =IFERROR(ABS((H649-J649)/J649),"") -> 
G712: =IF(COUNT(C712)=1,C712,#N/A) ->  | H712: =IF(COUNT(D712:E712)=2,ABS(D712-E712),#N/A) -> 
K713: =IFERROR(ABS((H713-J713)/J713),"") -> 
G776: =IF(COUNT(C776)=1,C776,#N/A) ->  | H776: =IF(COUNT(D776:E776)=2,ABS(D776-E776),#N/A) -> 
K777: =IFERROR(ABS((H777-J777)/J777),"") -> 
G840: =IF(COUNT(C840)=1,C840,#N/A) ->  | H840: =IF(COUNT(D840:E840)=2,ABS(D840-E840),#N/A) -> 
K841: =IFERROR(ABS((H841-J841)/J841),"") -> 
G904: =IF(COUNT(C904)=1,C904,#N/A) ->  | H904: =IF(COUNT(D904:E904)=2,ABS(D904-E904),#N/A) -> 
K905: =IFERROR(ABS((H905-J905)/J905),"") -> 
G968: =IF(COUNT(C968)=1,C968,#N/A) ->  | H968: =IF(COUNT(D968:E968)=2,ABS(D968-E968),#N/A) -> 
K969: =IFERROR(ABS((H969-J969)/J969),"") -> 
G1032: =IF(COUNT(C1032)=1,C1032,#N/A) ->  | H1032: =IF(COUNT(D1032:E1032)=2,ABS(D1032-E1032),#N/A) -> 
K1033: =IFERROR(ABS((H1033-J1033)/J1033),"") -> 
G1096: =IF(COUNT(C1096)=1,C1096,#N/A) ->  | H1096: =IF(COUNT(D1096:E1096)=2,ABS(D1096-E1096),#N/A) -> 
K1097: =IFERROR(ABS((H1097-J1097)/J1097),"") -> 
G1160: =IF(COUNT(C1160)=1,C1160,#N/A) ->  | H1160: =IF(COUNT(D1160:E1160)=2,ABS(D1160-E1160),#N/A) -> 
K1161: =IFERROR(ABS((H1161-J1161)/J1161),"") -> 
G1224: =IF(COUNT(C1224)=1,C1224,#N/A) ->  | H1224: =IF(COUNT(D1224:E1224)=2,ABS(D1224-E1224),#N/A) -> 
K1225: =IFERROR(ABS((H1225-J1225)/J1225),"") -> 
G1288: =IF(COUNT(C1288)=1,C1288,#N/A) ->  | H1288: =IF(COUNT(D1288:E1288)=2,ABS(D1288-E1288),#N/A) -> 
K1289: =IFERROR(ABS((H1289-J1289)/J1289),"") -> 
G1352: =IF(COUNT(C1352)=1,C1352,#N/A) ->  | H1352: =IF(COUNT(D1352:E1352)=2,ABS(D1352-E1352),#N/A) -> 
K1353: =IFERROR(ABS((H1353-J1353)/J1353),"") -> 
G1416: =IF(COUNT(C1416)=1,C1416,#N/A) ->  | H1416: =IF(COUNT(D1416:E1416)=2,ABS(D1416-E1416),#N/A) -> 
K1417: =IFERROR(ABS((H1417-J1417)/J1417),"") -> 
G1480: =IF(COUNT(C1480)=1,C1480,#N/A) ->  | H1480: =IF(COUNT(D1480:E1480)=2,ABS(D1480-E1480),#N/A) -> 
K1481: =IFERROR(ABS((H1481-J1481)/J1481),"") -> 
G1544: =IF(COUNT(C1544)=1,C1544,#N/A) ->  | H1544: =IF(COUNT(D1544:E1544)=2,ABS(D1544-E1544),#N/A) -> 
K1545: =IFERROR(ABS((H1545-J1545)/J1545),"") -> 
G1608: =IF(COUNT(C1608)=1,C1608,#N/A) ->  | H1608: =IF(COUNT(D1608:E1608)=2,ABS(D1608-E1608),#N/A) -> 
K1609: =IFERROR(ABS((H1609-J1609)/J1609),"") -> 
G1672: =IF(COUNT(C1672)=1,C1672,#N/A) ->  | H1672: =IF(COUNT(D1672:E1672)=2,ABS(D1672-E1672),#N/A) -> 
K1673: =IFERROR(ABS((H1673-J1673)/J1673),"") -> 
G1736: =IF(COUNT(C1736)=1,C1736,#N/A) ->  | H1736: =IF(COUNT(D1736:E1736)=2,ABS(D1736-E1736),#N/A) -> 
K1737: =IFERROR(ABS((H1737-J1737)/J1737),"") -> 
G1800: =IF(COUNT(C1800)=1,C1800,#N/A) ->  | H1800: =IF(COUNT(D1800:E1800)=2,ABS(D1800-E1800),#N/A) -> 
K1801: =IFERROR(ABS((H1801-J1801)/J1801),"") -> 
G1864: =IF(COUNT(C1864)=1,C1864,#N/A) ->  | H1864: =IF(COUNT(D1864:E1864)=2,ABS(D1864-E1864),#N/A) -> 
K1865: =IFERROR(ABS((H1865-J1865)/J1865),"") -> 
G1928: =IF(COUNT(C1928)=1,C1928,#N/A) ->  | H1928: =IF(COUNT(D1928:E1928)=2,ABS(D1928-E1928),#N/A) -> 
K1929: =IFERROR(ABS((H1929-J1929)/J1929),"") -> 
G1992: =IF(COUNT(C1992)=1,C1992,#N/A) ->  | H1992: =IF(COUNT(D1992:E1992)=2,ABS(D1992-E1992),#N/A) -> 
K1993: =IFERROR(ABS((H1993-J1993)/J1993),"") -> 

Sheet Integrace
B2: ALTERNATIVNÍ VÝPOČET INTEGRÁLŮ PRO ZÍSKÁNÍ STŘEDNÍ AERODYNAMICKÉ TĚTIVY
G4: dz | H4: b(z) | I4: b(z)^2 | J4: b(z)*z | K4: x(z) | L4: b(z)*x(z) | M4: nosná plocha | N4: bsat' | O4: zsat' | P4: xsat'
G5: 1 | R5: VÝSLEDNÉ HODNOTY
G7: 0 | H7: =-1.34393815971233E-11*G7^6 + 9.02408723343472E-09*G7^5 - 2.28030818090474E-06*G7^4 + 0.000264659016695035*G7^3 - 0.0147099242574313*G7^2 + 0.267703381712636*G7 + 99.2306019728348 -> 99.23060197 | I7: =H7^2 -> 9846.712368 | J7: =H7*G7 -> 0 | K7: =6.71969079906456E-12*G7^6 - 4.51204361704262E-09*G7^5 + 1.14015409044543E-06*G7^4 - 0.000132329508252482*G7^3 + 0.00735496209176745*G7^2 - 0.13385168628156*G7 + 0.384698812573333 -> 0.3846988126 | L7: =H7*K7 -> 38.17389475 | M7: 0 | N7: 0 | O7: 0 | P7: 0 | R7: Střední aerodynamická hloubka | T7: =2/MAX(M7:M2007)*(MAX(N7:N2007)-N7)/2 -> 84.96106273
G8: =G7+G$5 -> 1 | H8: =-1.34393815971233E-11*G8^6 + 9.02408723343472E-09*G8^5 - 2.28030818090474E-06*G8^4 + 0.000264659016695035*G8^3 - 0.0147099242574313*G8^2 + 0.267703381712636*G8 + 99.2306019728348 -> 99.48385782 | I8: =H8^2 -> 9897.037966 | J8: =H8*G8 -> 99.48385782 | K8: =6.71969079906456E-12*G8^6 - 4.51204361704262E-09*G8^5 + 1.14015409044543E-06*G8^4 - 0.000132329508252482*G8^3 + 0.00735496209176745*G8^2 - 0.13385168628156*G8 + 0.384698812573333 -> 0.2580708945 | L8: =H8*K8 -> 25.67388818 | M8: =M7+0.5*(H8+H7)*G$5 -> 99.3572299 | N8: =N7+0.5*(I8+I7)*G$5 -> 9871.875167 | O8: =O7+0.5*(J8+J7)*G$5 -> 49.74192891 | P8: =P7+0.5*(L8+L7)*G$5 -> 31.92389146 | R8: Poloha SAT na rozpětí | T8: =2/MAX(M7:M2007)*(MAX(O7:O2007)-O7)/2 -> 106.1239518
G9: =G8+G$5 -> 2 | H9: 99.70925011 | I9: 9941.934558 | J9: 199.4185002 | K9: 0.1453747508 | L9: 14.49520739 | M9: =M8+0.5*(H9+H8)*G$5 -> 198.9537839 | N9: =N8+0.5*(I9+I8)*G$5 -> 19791.36143 | O9: =O8+0.5*(J9+J8)*G$5 -> 199.1931079 | P9: =P8+0.5*(L9+L8)*G$5 -> 52.00843925 | R9: Vzdálenost náběžné hrany | T9: =2/MAX(M7:M2007)*(MAX(P7:P2007)-P7)/2 -> 7.519468568
G10: 3 | H10: 99.90828607 | I10: 9981.665626 | J10: 299.7248582 | K10: 0.04585677679 | L10: 4.581471973 | M10: 298.762552 | N10: 29753.16152 | O10: 448.7647872 | P10: 61.54677893
G11: 4 | H11: 100.0824203 | I11: 10016.49086 | J11: 400.3296813 | K11: -0.04121034097 | L11: -4.124430667 | M11: 398.7579051 | N11: 39752.23976 | O11: 798.7920569 | P11: 61.77529958
G12: 5 | H12: 100.2330559 | I12: 10046.66551 | J12: 501.1652797 | K12: -0.1165281539 | L12: -11.67997297 | M12: 498.9156433 | N12: 49783.81794 | O12: 1249.539537 | P12: 53.87309776
G13: 6 | H13: 100.3615456 | I13: 10072.43984 | J13: 602.1692736 | K13: -0.180772976 | L13: -18.14265528 | M13: 599.2129441 | N13: 59843.37061 | O13: 1801.206814 | P13: 38.96178364
G14: 7 | H14: 100.4691925 | I14: 10094.05863 | J14: 703.2843473 | K14: -0.2345964036 | L14: -23.56971123 | M14: 699.6283131 | N14: 69926.61985 | O14: 2453.933625 | P14: 18.10560039 | AE14: F(z)
G15: 8 | H15: 100.5572513 | I15: 10111.76079 | J15: 804.4580106 | K15: -0.27862583 | L15: -28.01784761 | M15: 800.141535 | N15: 80029.52956 | O15: 3207.804803 | P15: -7.688179031
G16: 9 | H16: 100.6269296 | I16: 10125.77896 | J16: 905.6423663 | K16: -0.3134649556 | L16: -31.54301601 | M16: 900.7336254 | N16: 90148.29944 | O16: 4062.854992 | P16: -37.46861085 | AE16: F(0)
G17: 10 | H17: 100.6793883 | I17: 10136.33922 | J17: 1006.793883 | K17: -0.3396942931 | L17: -34.20021363 | M17: 1001.386784 | N17: 100279.3585 | O17: 5019.073116 | P17: -70.34022567 | AE17: F(0)+0,5*(f(0)+F(0))*k
G18: 11 | H18: 100.715743 | I18: 10143.66089 | J18: 1107.873173 | K18: -0.3578716677 | L18: -36.04331092 | M18: 1102.08435 | N18: 110419.3586 | O18: 6076.406644 | P18: -105.4619879
G19: 12 | H19: 100.7370651 | I19: 10147.95629 | J19: 1208.844781 | K19: -0.3685327126 | L19: -37.12490387 | M19: 1202.810754 | N19: 120565.1672 | O19: 7234.765622 | P19: -142.0460953
G20: 13 | H20: 100.7443824 | I20: 10149.43059 | J20: 1309.676972 | K20: -0.3721913598 | L20: -37.49618868 | M20: 1303.551478 | N20: 130713.8606 | O20: 8494.026498 | P20: -179.3566416
G21: 14 | H21: 100.7386804 | I21: 10148.28172 | J21: 1410.341525 | K21: -0.3693403257 | L21: -37.20685701 | M21: 1404.293009 | N21: 140862.7168 | O21: 9854.035747 | P21: -216.7081645
G22: 15 | H22: 100.7209029 | I22: 10144.70028 | J22: 1510.813544 | K22: -0.3604515922 | L22: -36.30500982 | M22: 1505.022801 | N22: 151009.2078 | O22: 11314.61328 | P22: -253.4640979
G23: 16 | H23: 100.6919535 | I23: 10138.8695 | J23: 1611.071256 | K23: -0.3459768827 | L23: -34.83708818 | M23: 1605.729229 | N23: 161150.9927 | O23: 12875.55568 | P23: -289.0351469
G24: 17 | H24: 100.652696 | I24: 10130.96521 | J24: 1711.095832 | K24: -0.3263481337 | L24: -32.84781949 | M24: 1706.401554 | N24: 171285.91 | O24: 14536.63922 | P24: -322.8776007
G25: 18 | H25: 100.6039557 | I25: 10121.15589 | J25: 1810.871202 | K25: -0.3019779607 | L25: -30.38017737 | M25: 1807.02988 | N25: 181411.9706 | O25: 16297.62274 | P25: -354.4915991
G26: 19 | H26: 100.54652 | I26: 10109.60268 | J26: 1910.38388 | K26: -0.2732601204 | L26: -27.47535416 | M26: 1907.605117 | N26: 191527.3499 | O26: 18158.25028 | P26: -383.4193649
G27: 20 | H27: 100.4811397 | I27: 10096.45943 | J27: 2009.622794 | K27: -0.2405699673 | L27: -24.17274449 | M27: 2008.118947 | N27: 201630.3809 | O27: 20118.25362 | P27: -409.2434142
G28: 21 | H28: 100.4085296 | I28: 10081.87281 | J28: 2108.579121 | K28: -0.2042649052 | L28: -20.50993877 | M28: 2108.563782 | N28: 211719.547 | O28: 22177.35458 | P28: -431.5847558
G29: 22 | H29: 100.3293694 | I29: 10065.98237 | J29: 2207.246128 | K29: -0.1646848349 | L29: -16.52272565 | M29: 2208.932731 | N29: 221793.4746 | O29: 24335.2672 | P29: -450.1010881
G30: 23 | H30: 100.244305 | I30: 10048.92068 | J30: 2305.619014 | K30: -0.1221525964 | L30: -12.24510212 | M30: 2309.219569 | N30: 231850.9262 | O30: 26591.69977 | P30: -464.4850019
G31: 24 | H31: 100.1539486 | I31: 10030.81342 | J31: 2403.694766 | K31: -0.07697440578 | L31: -7.709290679 | M31: 2409.418695 | N31: 241890.7932 | O31: 28946.35666 | P31: -474.4621983
G32: 25 | H32: 100.0588804 | I32: 10011.77954 | J32: 2501.472009 | K32: -0.02944028841 | L32: -2.945762296 | M32: 2509.52511 | N32: 251912.0897 | O32: 31398.94005 | P32: -479.7897248
G33: 26 | H33: 99.9596488 | I33: 9991.931389 | J33: 2598.950869 | K33: 0.02017549363 | L33: 2.016735258 | M33: 2609.534374 | N33: 261913.9451 | O33: 33949.15149 | P33: -480.2542384
G34: 27 | H34: 99.85677176 | I34: 9971.374866 | J34: 2696.132837 | K34: 0.07161401857 | L34: 7.151144707 | M34: 2709.442585 | N34: 271895.5983 | O34: 36596.69334 | P34: -475.6702984
G35: 28 | H35: 99.75073723 | I35: 9950.209577 | J35: 2793.020642 | K35: 0.1246312869 | L35: 12.43206275 | M35: 2809.246339 | N35: 281856.3905 | O35: 39341.27008 | P35: -465.8786946
G36: 29 | H36: 99.64200419 | I36: 9928.528999 | J36: 2889.618122 | K36: 0.1789978079 | L36: 17.83570033 | M36: 2908.94271 | N36: 291795.7598 | O36: 42182.58946 | P36: -450.7448131
G37: 30 | H37: 99.53100343 | I37: 9906.420643 | J37: 2985.930103 | K37: 0.2344981919 | L37: 23.33984034 | M37: 3008.529214 | N37: 301713.2346 | O37: 45120.36358 | P37: -430.1570428
G38: 31 | H38: 99.41813832 | I38: 9883.966228 | J38: 3081.962288 | K38: 0.2909307457 | L38: 28.92379312 | M38: 3108.003785 | N38: 311608.428 | O38: 48154.30977 | P38: -404.025226
G39: 32 | H39: 99.30378567 | I39: 9861.241849 | J39: 3177.721141 | K39: 0.348107075 | L39: 34.56835036 | M39: 3207.364747 | N39: 321481.0321 | O39: 51284.15149 | P39: -372.2791543
G40: 33 | H40: 99.18829645 | I40: 9838.318152 | J40: 3273.213783 | K40: 0.4058516895 | L40: 40.25573769 | M40: 3306.610788 | N40: 331330.8121 | O40: 54509.61895 | P40: -334.8671103
G41: 34 | H41: 99.0719966 | I41: 9815.260511 | J41: 3368.447884 | K41: 0.4640016145 | L41: 45.96956638 | M41: 3405.740934 | N41: 341157.6014 | O41: 57830.44978 | P41: -291.7544582
G42: 35 | H42: 98.95518782 | I42: 9792.129197 | J42: 3463.431574 | K42: 0.5224060065 | L42: 51.6947845 | M42: 3504.754526 | N42: 350961.2963 | O42: 61246.38951 | P42: -242.9222828
G43: 36 | H43: 98.83814829 | I43: 9768.979558 | J43: 3558.173339 | K43: 0.5809257739 | L43: 57.41762779 | M43: 3603.651195 | N43: 360741.8506 | O43: 64757.19197 | P43: -188.3660767
G44: 37 | H44: 98.72113344 | I44: 9745.862188 | J44: 3652.681937 | K44: 0.6394332022 | L44: 63.12557048 | M44: 3702.430835 | N44: 370499.2715 | O44: 68362.6196 | P44: -128.0944775
G45: 38 | H45: 98.60437668 | I45: 9722.8231 | J45: 3746.966314 | K45: 0.6978115846 | L45: 68.80727634 | M45: 3801.09359 | N45: 380233.6142 | O45: 72062.44373 | P45: -62.12805412
G46: 39 | H46: 98.48809014 | I46: 9699.903899 | J46: 3841.035515 | K46: 0.7559548572 | L46: 74.45255011 | M46: 3899.639824 | N46: 389944.9777 | O46: 75856.44464 | P46: 9.501859106
G47: 40 | H47: 98.37246538 | I47: 9677.141945 | J47: 3934.898615 | K47: 0.8137672386 | L47: 80.05228951 | M47: 3998.070102 | N47: 399633.5006 | O47: 79744.41171 | P47: 86.75427892
G48: 41 | H48: 98.25767411 | I48: 9654.570522 | J48: 4028.564639 | K48: 0.8711628753 | L48: 85.5984379 | M48: 4096.385171 | N48: 409299.3568 | O48: 83726.14334 | P48: 169.5796426
G49: 42 | H49: 98.14386888 | I49: 9632.219 | J49: 4122.042493 | K49: 0.9280654908 | L49: 91.08393784 | M49: 4194.585943 | N49: 418942.7516 | O49: 87801.4469 | P49: 257.9208305
G50: 43 | H50: 98.03118379 | I50: 9610.112995 | J50: 4215.340903 | K50: 0.9844080403 | L50: 96.50268552 | M50: 4292.673469 | N50: 428563.9176 | O50: 91970.1386 | P50: 351.7141422
G51: 44 | H51: 97.91973513 | I51: 9588.274529 | J51: 4308.468346 | K51: 1.04013237 | L51: 101.8494862 | M51: 4390.648929 | N51: 438163.1113 | O51: 96232.04323 | P51: 450.890228
G52: 45 | H52: 97.80962211 | I52: 9566.722178 | J52: 4401.432995 | K52: 1.095188882 | L52: 107.1200107 | M52: 4488.513607 | N52: 447740.6097 | O52: 100586.9939 | P52: 555.3749765
G53: 46 | H53: 97.70092748 | I53: 9545.47123 | J53: 4494.242664 | K53: 1.149536202 | L53: 112.3107531 | M53: 4586.268882 | N53: 457296.7064 | O53: 105034.8317 | P53: 665.0903584
G54: 47 | H54: 97.59371818 | I54: 9524.533827 | J54: 4586.904754 | K54: 1.203140854 | L54: 117.4189894 | M54: 4683.916205 | N54: 466831.7089 | O54: 109575.4054 | P54: 779.9552297
G55: 48 | H55: 97.48804601 | I55: 9503.919115 | J55: 4679.426208 | K55: 1.255976939 | L55: 122.4427376 | M55: 4781.457087 | N55: 476345.9354 | O55: 114208.5709 | P55: 899.8860932
G56: 49 | H56: 97.38394826 | I56: 9483.633378 | J56: 4771.813465 | K56: 1.308025817 | L56: 127.3807185 | M56: 4878.893084 | N56: 485839.7116 | O56: 118934.1908 | P56: 1024.797821
G57: 50 | H57: 97.28144829 | I57: 9463.680182 | J57: 4864.072415 | K57: 1.3592758 | L57: 132.2323185 | M57: 4976.225782 | N57: 495313.3684 | O57: 123752.1337 | P57: 1154.60434
G58: 51 | H58: 97.18055622 | I58: 9444.060507 | J58: 4956.208367 | K58: 1.409721838 | L58: 136.9975524 | M58: 5073.456785 | N58: 504767.2388 | O58: 128662.2741 | P58: 1289.219275
G59: 52 | H59: 97.08126945 | I59: 9424.772878 | J59: 5048.226012 | K59: 1.459365224 | L59: 141.6770285 | M59: 5170.587697 | N59: 514201.6555 | O59: 133664.4913 | P59: 1428.556566
G60: 53 | H60: 96.98357332 | I60: 9405.813494 | J60: 5140.129386 | K60: 1.508213292 | L60: 146.2719144 | M60: 5267.620119 | N60: 523616.9486 | O60: 138758.669 | P60: 1572.531037
G61: 54 | H61: 96.88744165 | I61: 9387.17635 | J61: 5231.921849 | K61: 1.556279127 | L61: 150.7839031 | M61: 5364.555626 | N61: 533013.4436 | O61: 143944.6946 | P61: 1721.058946
G62: 55 | H62: 96.79283735 | I62: 9368.853363 | J62: 5323.606054 | K62: 1.603581277 | L62: 155.2151818 | M62: 5461.395766 | N62: 542391.4584 | O62: 149222.4585 | P62: 1874.058488
G63: 56 | H63: 96.69971297 | I63: 9350.834488 | J63: 5415.183926 | K63: 1.650143472 | L63: 159.5684001 | M63: 5558.142041 | N63: 551751.3023 | O63: 154591.8535 | P63: 2031.450279
G64: 57 | H64: 96.60801123 | I64: 9333.107833 | J64: 5506.65664 | K64: 1.695994344 | L64: 163.8466406 | M64: 5654.795903 | N64: 561093.2735 | O64: 160052.7738 | P64: 2193.1578
G65: 58 | H65: 96.51766561 | I65: 9315.659775 | J65: 5598.024606 | K65: 1.741167152 | L65: 168.053389 | M65: 5751.358742 | N65: 570417.6573 | O65: 165605.1144 | P65: 2359.107814
G66: 59 | H66: 96.42860088 | I66: 9298.475067 | J66: 5689.287452 | K66: 1.785699521 | L66: 172.1925064 | M66: 5847.831875 | N66: 579724.7247 | O66: 171248.7705 | P66: 2529.230762
G67: 60 | H67: 96.34073358 | I67: 9281.536946 | J67: 5780.444015 | K67: 1.829633173 | L67: 176.2682021 | M67: 5944.216542 | N67: 589014.7307 | O67: 176983.6362 | P67: 2703.461116
G68: 61 | H68: 96.25397259 | I68: 9264.827239 | J68: 5871.492328 | K68: 1.873013669 | L68: 180.2850063 | M68: 6040.513895 | N68: 598287.9128 | O68: 182809.6044 | P68: 2881.73772
G69: 62 | H69: 96.16821961 | I69: 9248.326463 | J69: 5962.429616 | K69: 1.915890157 | L69: 184.2477453 | M69: 6136.724991 | N69: 607544.4897 | O69: 188726.5653 | P69: 3064.004096
G70: 63 | H70: 96.08336968 | I70: 9232.013929 | J70: 6053.25229 | K70: 1.958315123 | L70: 188.1615159 | M70: 6232.850786 | N70: 616784.6599 | O70: 194734.4063 | P70: 3250.208727
G71: 64 | H71: 95.99931163 | I71: 9215.867834 | J71: 6143.955945 | K71: 2.000344148 | L71: 192.0316612 | M71: 6328.892126 | N71: 626008.6008 | O71: 200833.0104 | P71: 3440.305316
G72: 65 | H72: =-1.34393815971233E-11*G72^6 + 9.02408723343472E-09*G72^5 - 2.28030818090474E-06*G72^4 + 0.000264659016695035*G72^3 - 0.0147099242574313*G72^2 + 0.267703381712636*G72 + 99.2306019728348 -> 95.9159286 | I72: =H72^2 -> 9199.865359 | J72: =H72*G72 -> 6234.535359 | K72: =6.71969079906456E-12*G72^6 - 4.51204361704262E-09*G72^5 + 1.14015409044543E-06*G72^4 - 0.000132329508252482*G72^3 + 0.00735496209176745*G72^2 - 0.13385168628156*G72 + 0.384698812573333 -> 2.042035666 | L72: =H72*K72 -> 195.8637471 | M72: 6424.849747 | N72: 635216.4674 | O72: 207022.2561 | P72: 3634.25302
G73: =G72+G$5 -> 66 | H73: 95.83309847 | I73: 9183.982762 | J73: 6324.984499 | K73: 2.083450732 | L73: 199.6635392 | M73: =M72+0.5*(H73+H72)*G$5 -> 6520.72426 | N73: =N72+0.5*(I73+I72)*G$5 -> 644408.3914 | O73: =O72+0.5*(J73+J72)*G$5 -> 213302.016 | P73: =P72+0.5*(L73+L72)*G$5 -> 3832.016663
G74: 67 | H74: 95.75069435 | I74: 9168.195468 | J74: 6415.296521 | K74: 2.124652793 | L74: 203.4369802 | M74: 6616.516157 | N74: 653584.4805 | O74: 219672.1565 | P74: 4033.566923
G75: 68 | H75: 95.66858501 | I75: 9152.478158 | J75: 6505.463781 | K75: 2.165707463 | L75: 207.1901685 | M75: 6712.225796 | N75: 662744.8173 | O75: 226132.5367 | P75: 4238.880497
G76: 69 | H76: 95.58663534 | I76: 9136.804855 | J76: 6595.477838 | K76: 2.206682301 | L76: 210.9293364 | M76: 6807.853406 | N76: 671889.4589 | O76: 232683.0075 | P76: 4447.940249
G77: 70 | H77: 95.50470674 | I77: 9121.14901 | J77: 6685.329472 | K77: 2.247646599 | L77: 214.6608293 | M77: 6903.399077 | N77: 681018.4358 | O77: 239323.4111 | P77: 4660.735332
G78: 71 | H78: 95.4226576 | I78: 9105.483583 | J78: 6775.008689 | K78: 2.288671173 | L78: 218.3910857 | M78: 6998.86276 | N78: 690131.7521 | O78: 246053.5802 | P78: 4877.26129
G79: 72 | H79: 95.34034364 | I79: 9089.781125 | J79: 6864.504742 | K79: 2.329828152 | L79: 222.1266167 | M79: 7094.24426 | N79: 699229.3844 | O79: 252873.3369 | P79: 5097.520141
G80: 73 | H80: 95.25761837 | I80: 9074.013858 | J80: 6953.806141 | K80: 2.371190786 | L80: 225.873987 | M80: 7189.543241 | N80: 708311.2819 | O80: 259782.4924 | P80: 5321.520443
G81: 74 | H81: 95.17433346 | I81: 9058.15375 | J81: 7042.900676 | K81: 2.412833242 | L81: 229.6397956 | M81: 7284.759217 | N81: 717377.3657 | O81: 266780.8458 | P81: 5549.277334
G82: 75 | H82: 95.09033911 | I82: 9042.172591 | J82: 7131.775433 | K82: 2.45483042 | L82: 233.4306571 | M82: 7379.891553 | N82: 726427.5289 | O82: 273868.1838 | P82: 5780.81256
G83: 76 | H83: 95.00548442 | I83: 9026.04207 | J83: 7220.416816 | K83: 2.497257764 | L83: 237.2531835 | M83: 7474.939465 | N83: 735461.6362 | O83: 281044.2799 | P83: 6016.154481
G84: 77 | H84: 94.91961779 | I84: 9009.733842 | J84: 7308.81057 | K84: 2.540191079 | L84: 241.1139664 | M84: 7569.902016 | N84: 744479.5242 | O84: 288308.8936 | P84: 6255.338056
G85: 78 | H85: 94.83258723 | I85: 8993.2196 | J85: 7396.941804 | K85: 2.583706362 | L85: 245.0195589 | M85: 7664.778119 | N85: 753481.0009 | O85: 295661.7698 | P85: 6498.404818
G86: 79 | H86: 94.74424071 | I86: 8976.471148 | J86: 7484.795016 | K86: 2.627879621 | L86: 248.9764594 | M86: 7759.566533 | N86: 762465.8463 | O86: 303102.6382 | P86: 6745.402827
G87: 80 | H87: 94.65442652 | I87: 8959.460459 | J87: 7572.354121 | K87: 2.672786717 | L87: 252.9910939 | M87: 7854.265866 | N87: 771433.8121 | O87: 310631.2128 | P87: 6996.386604
G88: 81 | H88: 94.56299356 | I88: 8942.15975 | J88: 7659.602478 | K88: 2.718503198 | L88: 257.0698004 | M88: 7948.874576 | N88: 780384.6222 | O88: 318247.1911 | P88: 7251.417051
G89: 82 | H89: 94.46979167 | I89: 8924.541538 | J89: 7746.522917 | K89: 2.765104143 | L89: 261.2188123 | M89: 8043.390969 | N89: 789317.9728 | O89: 325950.2538 | P89: 7510.561358
G90: 83 | H90: 94.37467194 | I90: 8906.578703 | J90: 7833.097771 | K90: 2.812664008 | L90: 265.4442431 | M90: 8137.813201 | N90: 798233.533 | O90: 333740.0641 | P90: 7773.892885
G91: 84 | H91: 94.27748698 | I91: 8888.244552 | J91: 7919.308907 | K91: 2.861256485 | L91: 269.752071 | M91: 8232.13928 | N91: 807130.9446 | O91: 341616.2675 | P91: 8041.491042
G92: 85 | H92: 94.17809125 | I92: 8869.512872 | J92: 8005.137756 | K92: 2.910954353 | L92: 274.1481246 | M92: 8326.367069 | N92: 816009.8233 | O92: 349578.4908 | P92: 8313.44114
G93: 86 | H93: 94.07634127 | I93: 8850.357987 | J93: 8090.565349 | K93: 2.961829342 | L93: 278.638068 | M93: 8420.494286 | N93: 824869.7587 | O93: 357626.3424 | P93: 8589.834236
G94: 87 | H94: 93.97209595 | I94: 8830.754816 | J94: 8175.572347 | K94: 3.013952005 | L94: 283.227387 | M94: 8514.518504 | N94: 833710.3151 | O94: 365759.4112 | P94: 8870.766964
G95: 88 | H95: 93.86521679 | I95: 8810.678922 | J95: 8260.139077 | K95: 3.067391585 | L95: 287.9213761 | M95: 8608.437161 | N95: 842531.032 | O95: 373977.2669 | P95: 9156.341345
G96: 89 | H96: 93.75556817 | I96: 8790.106563 | J96: 8344.245567 | K96: 3.122215893 | L96: 292.725125 | M96: 8702.247553 | N96: 851331.4247 | O96: 382279.4592 | P96: 9446.664596
G97: 90 | H97: 93.64301757 | I97: 8769.01474 | J97: 8427.871582 | K97: 3.178491192 | L97: 297.6435066 | M97: 8795.946846 | N97: 860110.9854 | O97: 390665.5178 | P97: 9741.848912
G98: 91 | H98: 93.52743579 | I98: 8747.381246 | J98: 8510.996657 | K98: 3.236282083 | L98: 302.6811647 | M98: 8889.532073 | N98: 868869.1834 | O98: 399134.9519 | P98: 10042.01125
G99: 92 | H99: 93.40869717 | I99: 8725.184707 | J99: 8593.60014 | K99: 3.295651393 | L99: 307.842503 | M99: 8983.000139 | N99: 877605.4664 | O99: 407687.2503 | P99: 10347.27308
G100: 93 | H100: 93.2866798 | I100: 8702.404628 | J100: 8675.661221 | K100: 3.356660079 | L100: 313.131674 | M100: 9076.347828 | N100: 886319.261 | O100: 416321.881 | P100: 10657.76017
G101: 94 | H101: 93.16126572 | I101: 8679.02143 | J101: 8757.158977 | K101: 3.41936712 | L101: 318.5525689 | M101: 9169.5718 | N101: 895009.9741 | O101: 425038.2911 | P101: 10973.60229
G102: 95 | H102: 93.03234109 | I102: 8655.016489 | J102: 8838.072404 | K102: 3.483829433 | L102: 324.1088081 | M102: 9262.668604 | N102: 903676.993 | O102: 433835.9068 | P102: 11294.93298
G103: 96 | H103: 92.89979641 | I103: 8630.372173 | J103: 8918.380456 | K103: 3.550101773 | L103: 329.803732 | M103: 9355.634673 | N103: 912319.6873 | O103: 442714.1332 | P103: 11621.88925
G104: 97 | H104: 92.76352664 | I104: 8605.071875 | J104: 8998.062084 | K104: 3.618236659 | L104: 335.6403927 | M104: 9448.466334 | N104: 920937.4094 | O104: 451672.3545 | P104: 11954.61131
G105: 98 | H105: 92.62343138 | I105: 8579.100041 | J105: 9077.096275 | K105: 3.688284288 | L105: 341.6215467 | M105: 9541.159813 | N105: 929529.4953 | O105: 460709.9337 | P105: 12293.24228
G106: 99 | H106: 92.47941503 | I106: 8552.442204 | J106: 9155.462088 | K106: 3.760292463 | L106: 347.7496473 | M106: 9633.711236 | N106: 938095.2664 | O106: 469826.2129 | P106: 12637.92788
G107: 100 | H107: 92.33138691 | I107: 8525.085009 | J107: 9233.138691 | K107: 3.834306523 | L107: 354.0268391 | M107: 9726.116637 | N107: 946634.0301 | O107: 479020.5133 | P107: 12988.81612
G108: 101 | H108: 92.1792614 | I108: 8497.016233 | J108: 9310.105402 | K108: 3.910369277 | L108: 360.4549517 | M108: 9818.371961 | N108: 955145.0807 | O108: 488292.1353 | P108: 13346.05702
G109: 102 | H109: 92.02295807 | I109: 8468.224811 | J109: 9386.341723 | K109: 3.988520946 | L109: 367.0354957 | M109: 9910.473071 | N109: 963627.7012 | O109: 497640.3589 | P109: 13709.80224
G110: 103 | H110: 91.86240175 | I110: 8438.700854 | J110: 9461.82738 | K110: 4.068799105 | L110: 373.769658 | M110: 10002.41575 | N110: 972081.164 | O110: 507064.4434 | P110: 14080.20482
G111: 104 | H111: 91.69752268 | I111: 8408.435666 | J111: 9536.542359 | K111: 4.151238638 | L111: 380.6582991 | M111: 10094.19571 | N111: 980504.7323 | O111: 516563.6283 | P111: 14457.4188
G112: 105 | H112: 91.52825659 | I112: 8377.421754 | J112: 9610.466942 | K112: 4.235871684 | L112: 387.7019503 | M112: 10185.8086 | N112: 988897.661 | O112: 526137.1329 | P112: 14841.59892
G113: 106 | H113: 91.35454475 | I113: 8345.652846 | J113: 9683.581743 | K113: 4.322727604 | L113: 394.9008123 | M113: 10277.25 | N113: 997259.1983 | O113: 535784.1573 | P113: 15232.9003
G114: 107 | H114: 91.17633407 | I114: 8313.123895 | J114: 9755.867746 | K114: 4.411832941 | L114: 402.2547541 | M114: 10368.51544 | N114: 1005588.587 | O114: 545503.882 | P114: 15631.47809
G115: 108 | H115: 90.99357717 | I115: 8279.831086 | J115: 9827.306334 | K115: 4.503211392 | L115: 409.7633133 | M115: 10459.6004 | N115: 1013885.064 | O115: 555295.4691 | P115: 16037.48712
G116: 109 | H116: 90.8062324 | I116: 8245.771842 | J116: 9897.879331 | K116: 4.596883778 | L116: 417.4256966 | M116: 10550.5003 | N116: 1022147.866 | O116: 565158.0619 | P116: 16451.08162
G117: 110 | H117: 90.6142639 | I117: 8210.944823 | J117: 9967.569029 | K117: 4.692868025 | L117: 425.2407817 | M117: 10641.21055 | N117: 1030376.224 | O117: 575090.7861 | P117: 16872.41486
G118: 111 | H118: 90.41764166 | I118: 8175.349923 | J118: 10036.35822 | K118: 4.791179148 | L118: 433.2071193 | M118: 10731.7265 | N118: 1038569.371 | O118: 585092.7497 | P118: 17301.63881
G119: 112 | H119: 90.21634148 | I119: 8138.988269 | J119: 10104.23025 | K119: 4.891829237 | L119: 441.3229369 | M119: 10822.0435 | N119: 1046726.54 | O119: 595163.0439 | P119: 17738.90384
G120: 113 | H120: 90.01034504 | I120: 8101.862215 | J120: 10171.16899 | K120: 4.994827454 | L120: 449.5861426 | M120: 10912.15684 | N120: 1054846.966 | O120: 605300.7436 | P120: 18184.35838
G121: 114 | H121: 89.79963989 | I121: 8063.975325 | J121: 10237.15895 | K121: 5.100180027 | L121: 457.9943299 | M121: 11002.06183 | N121: 1062929.884 | O121: 615504.9075 | P121: 18638.14862
G122: 115 | H122: 89.58421944 | I122: 8025.332372 | J122: 10302.18524 | K122: 5.207890255 | L122: 466.5447835 | M122: 11091.75376 | N122: 1070974.538 | O122: 625774.5796 | P122: 19100.41817
G123: 116 | H123: 89.36408292 | I123: 7985.939316 | J123: 10366.23362 | K123: 5.317958515 | L123: 475.2344857 | M123: 11181.22791 | N123: 1078980.174 | O123: 636108.789 | P123: 19571.30781
G124: 117 | H124: 89.1392354 | I124: 7945.803287 | J124: 10429.29054 | K124: 5.430382275 | L124: 484.0601239 | M124: 11270.47957 | N124: 1086946.045 | O124: 646506.5511 | P124: 20050.95511
G125: 118 | H125: 88.90968772 | I125: 7904.932571 | J125: 10491.34315 | K125: 5.545156111 | L125: 493.0180982 | M125: 11359.50403 | N125: 1094871.413 | O125: 656966.868 | P125: 20539.49423
G126: 119 | H126: 88.67545649 | I126: 7863.336583 | J126: 10552.37932 | K126: 5.66227173 | L126: 502.1045304 | M126: 11448.29661 | N126: 1102755.548 | O126: 667488.7292 | P126: 21037.05554
G127: 120 | H127: 88.43656396 | I127: 7821.025844 | J127: 10612.38767 | K127: 5.781717994 | L127: 511.3152732 | M127: 11536.85262 | N127: 1110597.729 | O127: 678071.1127 | P127: 21543.76544
G128: 121 | H128: 88.19303803 | I128: 7778.011957 | J128: 10671.3576 | K128: 5.903480957 | L128: 520.6459206 | M128: 11625.16742 | N128: 1118397.248 | O128: 688712.9853 | P128: 22059.74604
G129: 122 | H129: 87.94491215 | I129: 7734.307572 | J129: 10729.27928 | K129: 6.027543899 | L129: 530.0918186 | M129: 11713.23639 | N129: 1126153.408 | O129: 699413.3038 | P129: 22585.11491
G130: 123 | H130: 87.69222521 | I130: 7689.926363 | J130: 10786.1437 | K130: 6.153887364 | L130: 539.6480767 | M130: 11801.05496 | N130: 1133865.525 | O130: 710171.0153 | P130: 23119.98486
G131: 124 | H131: 87.43502151 | I131: 7644.882987 | J131: 10841.94267 | K131: 6.282489214 | L131: 549.3095796 | M131: 11888.61858 | N131: 1141532.929 | O131: 720985.0585 | P131: 23664.46368
G132: 125 | H132: 87.17335059 | I132: 7599.193053 | J132: 10896.66882 | K132: 6.413324674 | L132: 559.0710002 | M132: 11975.92277 | N132: 1149154.967 | O132: 731854.3642 | P132: 24218.65397
G133: 126 | H133: 86.90726716 | I133: 7552.873085 | J133: 10950.31566 | K133: 6.54636639 | L133: 568.9268128 | M133: 12062.96308 | N133: 1156731.001 | O133: 742777.8565 | P133: 24782.65288
G134: 127 | H134: 86.63683095 | I134: 7505.940477 | J134: 11002.87753 | K134: 6.681584492 | L134: 578.8713062 | M134: 12149.73513 | N134: 1164260.407 | O134: 753754.453 | P134: 25356.55194
G135: 128 | H135: 86.36210662 | I135: 7458.41346 | J135: 11054.34965 | K135: 6.818946656 | L135: 588.8985982 | M135: 12236.2346 | N135: 1171742.584 | O135: 764783.0666 | P135: 25940.43689
G136: 129 | H136: =-1.34393815971233E-11*G136^6 + 9.02408723343472E-09*G136^5 - 2.28030818090474E-06*G136^4 + 0.000264659016695035*G136^3 - 0.0147099242574313*G136^2 + 0.267703381712636*G136 + 99.2306019728348 -> 86.08316358 | I136: =H136^2 -> 7410.311052 | J136: =H136*G136 -> 11104.7281 | K136: =6.71969079906456E-12*G136^6 - 4.51204361704262E-09*G136^5 + 1.14015409044543E-06*G136^4 - 0.000132329508252482*G136^3 + 0.00735496209176745*G136^2 - 0.13385168628156*G136 + 0.384698812573333 -> 6.958418177 | L136: =H136*K136 -> 599.0026502 | M136: 12322.45723 | N136: 1179176.947 | O136: 775862.6055 | P136: 26534.38752
G137: =G136+G$5 -> 130 | H137: 85.80007584 | I137: 7361.653015 | J137: 11154.00986 | K137: 7.099962044 | L137: 609.1772819 | M137: =M136+0.5*(H137+H136)*G$5 -> 12408.39885 | N137: =N136+0.5*(I137+I136)*G$5 -> 1186562.929 | O137: =O136+0.5*(J137+J136)*G$5 -> 786991.9745 | P137: =P136+0.5*(L137+L136)*G$5 -> 27138.47748
G138: 131 | H138: 85.51292189 | I138: 7312.45981 | J138: 11202.19277 | K138: 7.24353902 | L138: 619.4161864 | M138: 12494.05535 | N138: 1193899.985 | O138: 798170.0758 | P138: 27752.77422
G139: 132 | H139: 85.22178448 | I139: 7262.752549 | J139: 11249.27555 | K139: 7.389107727 | L139: 629.7129462 | M139: 12579.4227 | N139: 1201187.591 | O139: 809395.81 | P139: 28377.33878
G140: 133 | H140: 84.92675046 | I140: 7212.552943 | J140: 11295.25781 | K140: 7.536624737 | L140: 640.0610483 | M140: 12664.49697 | N140: 1208425.244 | O140: 820668.0766 | P140: 29012.22578
G141: 134 | H141: 84.6279106 | I141: 7161.883252 | J141: 11340.14002 | K141: 7.686044665 | L141: 650.4539007 | M141: 12749.2743 | N141: 1215612.462 | O141: 831985.7756 | P141: 29657.48325
G142: 135 | H142: 84.32535939 | I142: 7110.766236 | J142: 11383.92352 | K142: 7.837320269 | L142: 660.8848484 | M142: 12833.75094 | N142: 1222748.787 | O142: 843347.8073 | P142: 30313.15263
G143: 136 | H143: 84.01919481 | I143: 7059.225096 | J143: 11426.61049 | K143: 7.990402558 | L143: 671.3471891 | M143: 12917.92321 | N143: 1229833.782 | O143: 854753.0743 | P143: 30979.26865
G144: 137 | H144: 83.70951813 | I144: 7007.283426 | J144: 11468.20398 | K144: 8.145240894 | L144: 681.8341904 | M144: 13001.78757 | N144: 1236867.037 | O144: 866200.4816 | P144: 31655.85934
G145: 138 | H145: 83.39643369 | I145: 6954.965153 | J145: 11508.70785 | K145: 8.301783115 | L145: 692.339105 | M145: 13085.34055 | N145: 1243848.161 | O145: 877688.9375 | P145: 32342.94599
G146: 139 | H146: 83.08004863 | I146: 6902.294481 | J146: 11548.12676 | K146: 8.459975644 | L146: 702.855188 | M146: 13168.57879 | N146: 1250776.791 | O146: 889217.3548 | P146: 33040.54313
G147: 140 | H147: 82.76047267 | I147: 6849.295837 | J147: 11586.46617 | K147: 8.619763624 | L147: 713.3757118 | M147: 13251.49905 | N147: 1257652.586 | O147: 900784.6513 | P147: 33748.65858
G148: 141 | H148: 82.43781785 | I148: 6795.993811 | J148: 11623.73232 | K148: 8.781091036 | L148: 723.8939833 | M148: 13334.09819 | N148: 1264475.231 | O148: 912389.7505 | P148: 34467.29343
G149: 142 | H149: 82.11219824 | I149: 6742.413099 | J149: 11659.93215 | K149: 8.94390084 | L149: 734.4033588 | M149: 13416.3732 | N149: 1271244.434 | O149: 924031.5827 | P149: 35196.4421
G150: 143 | H150: 81.78372969 | I150: 6688.578443 | J150: 11695.07335 | K150: 9.108135111 | L150: 744.8972599 | M150: 13498.32116 | N150: 1277959.93 | O150: 935709.0855 | P150: 35936.09241
G151: 144 | H151: 81.45252956 | I151: 6634.514571 | J151: 11729.16426 | K151: 9.273735179 | L151: 755.3691887 | M151: 13579.93929 | N151: 1284621.477 | O151: 947421.2043 | P151: 36686.22563
G152: 145 | H152: 81.11871635 | I152: 6580.246142 | J152: 11762.21387 | K152: 9.440641782 | L152: 765.8127429 | M152: 13661.22492 | N152: 1291228.857 | O152: 959166.8934 | P152: 37446.8166
G153: 146 | H153: 80.78240948 | I153: 6525.797681 | J153: 11794.23178 | K153: 9.608795217 | L153: 776.2216298 | M153: 13742.17548 | N153: 1297781.879 | O153: 970945.1162 | P153: 38217.83379
G154: 147 | H154: 80.44372892 | I154: 6471.193522 | J154: 11825.22815 | K154: 9.778135496 | L154: 786.5896811 | M154: 13822.78855 | N154: 1304280.374 | O154: 982754.8461 | P154: 38999.23944
G155: 148 | H155: 80.10279489 | I155: 6416.457749 | J155: 11855.21364 | K155: 9.94860251 | L155: 796.9108663 | M155: 13903.06181 | N155: 1310724.2 | O155: 994595.067 | P155: 39790.98972
G156: 149 | H156: 79.75972751 | I156: 6361.614133 | J156: 11884.1994 | K156: 10.1201362 | L156: 807.1793054 | M156: 13982.99307 | N156: 1317113.236 | O156: 1006464.774 | P156: 40593.0348
G157: 150 | H157: 79.41464648 | I157: 6306.686076 | J157: 11912.19697 | K157: 10.29267671 | L157: 817.3892823 | M157: 14062.58026 | N157: 1323447.386 | O157: 1018362.972 | P157: 41405.31909
G158: 151 | H158: 79.0676707 | I158: 6251.696549 | J158: 11939.21828 | K158: 10.4661646 | L158: 827.5352563 | M158: 14141.82142 | N158: 1329726.577 | O158: 1030288.679 | P158: 42227.78136
G159: 152 | H159: 78.71891789 | I159: 6196.668034 | J159: 11965.27552 | K159: 10.640541 | L159: 837.6118736 | M159: 14220.71471 | N159: 1335950.76 | O159: 1042240.926 | P159: 43060.35493
G160: 153 | H160: 78.36850429 | I160: 6141.622465 | J160: 11990.38116 | K160: 10.8157478 | L160: 847.6139782 | M160: 14299.25842 | N160: 1342119.905 | O160: 1054218.755 | P160: 43902.96785
G161: 154 | H161: 78.0165442 | I161: 6086.581168 | J161: 12014.54781 | K161: 10.99172785 | L161: 857.5366217 | M161: 14377.45095 | N161: 1348234.007 | O161: 1066221.219 | P161: 44755.54315
G162: 155 | H162: 77.66314961 | I162: 6031.564807 | J162: 12037.78819 | K162: 11.16842514 | L162: 867.3750729 | M162: 14455.29079 | N162: 1354293.08 | O162: 1078247.387 | P162: 45617.999
G163: 156 | H163: 77.30842982 | I163: 5976.593321 | J163: 12060.11505 | K163: 11.34578504 | L163: 877.1248263 | M163: 14532.77658 | N163: 1360297.159 | O163: 1090296.339 | P163: 46490.24895
G164: 157 | H164: 76.95249101 | I164: 5921.685873 | J164: 12081.54109 | K164: 11.52375444 | L164: 886.78161 | M164: 14609.90704 | N164: 1366246.298 | O164: 1102367.167 | P164: 47372.20217
G165: 158 | H165: 76.59543582 | I165: 5866.860788 | J165: 12102.07886 | K165: 11.70228204 | L165: 896.3413926 | M165: 14686.68101 | N165: 1372140.572 | O165: 1114458.977 | P165: 48263.76367
G166: 159 | H166: 76.23736291 | I166: 5812.135503 | J166: 12121.7407 | K166: 11.88131849 | L166: 905.8003896 | M166: 14763.09741 | N166: 1377980.07 | O166: 1126570.887 | P166: 49164.83456
G167: 160 | H167: 75.87836653 | I167: 5757.526507 | J167: 12140.53864 | K167: 12.06081668 | L167: 915.1550687 | M167: 14839.15527 | N167: 1383764.901 | O167: 1138702.026 | P167: 50075.31229
G168: 161 | H168: 75.51853607 | I168: 5703.049291 | J168: 12158.48431 | K168: 12.24073191 | L168: 924.402154 | M168: 14914.85372 | N168: 1389495.189 | O168: 1150851.538 | P168: 50995.0909
G169: 162 | H169: 75.15795561 | I169: 5648.718291 | J169: 12175.58881 | K169: 12.42102214 | L169: 933.5386305 | M169: 14990.19197 | N169: 1395171.073 | O169: 1163018.574 | P169: 51924.0613
G170: 163 | H170: 74.7967034 | I170: 5594.54684 | J170: 12191.86265 | K170: 12.60164824 | L170: 942.5617458 | M170: 15065.1693 | N170: 1400792.705 | O170: 1175202.3 | P170: 52862.11148
G171: 164 | H171: 74.43485146 | I171: 5540.547111 | J171: 12207.31564 | K171: 12.78257421 | L171: 951.4690128 | M171: 15139.78508 | N171: 1406360.252 | O171: 1187401.889 | P171: 53809.12686
G172: 165 | H172: 74.072465 | I172: 5486.730071 | J172: 12221.95672 | K172: 12.96376744 | L172: 960.25821 | M172: 15214.03873 | N172: 1411873.891 | O172: 1199616.525 | P172: 54764.99047
G173: 166 | H173: 73.70960201 | I173: 5433.105428 | J173: 12235.79393 | K173: 13.14519894 | L173: 968.9273818 | M173: 15287.92977 | N173: 1417333.808 | O173: 1211845.401 | P173: 55729.58327
G174: 167 | H174: 73.34631268 | I174: 5379.681584 | J174: 12248.83422 | K174: 13.3268436 | L174: 977.4748376 | M174: 15361.45773 | N174: 1422740.202 | O174: 1224087.715 | P174: 56702.78438
G175: 168 | H175: 72.98263893 | I175: 5326.465585 | J175: 12261.08334 | K175: 13.50868047 | L175: 985.8991494 | M175: 15434.6222 | N175: 1428093.276 | O175: 1236342.673 | P175: 57684.47137
G176: 169 | H176: 72.61861384 | I176: 5273.463076 | J176: 12272.54574 | K176: 13.69069302 | L176: 994.1991494 | M176: 15507.42283 | N176: 1433393.24 | O176: 1248609.488 | P176: 58674.52052
G177: 170 | H177: 72.25426116 | I177: 5220.678255 | J177: 12283.2244 | K177: 13.87286936 | L177: 1002.373926 | M177: 15579.85927 | N177: 1438640.311 | O177: 1260887.373 | P177: 59672.80706
G178: 171 | H178: 71.88959471 | I178: 5168.113827 | J178: 12293.12069 | K178: 14.05520258 | L178: 1010.422817 | M178: 15651.93119 | N178: 1443834.707 | O178: 1273175.546 | P178: 60679.20543
G179: 172 | H179: 71.52461786 | I179: 5115.77096 | J179: 12302.23427 | K179: 14.237691 | L179: 1018.345408 | M179: 15723.6383 | N179: 1448976.649 | O179: 1285473.223 | P179: 61693.58954
G180: 173 | H180: 71.15932296 | I180: 5063.649245 | J180: 12310.56287 | K180: 14.42033845 | L180: 1026.141521 | M180: 15794.98027 | N180: 1454066.359 | O180: 1297779.622 | P180: 62715.83301
G181: 174 | H181: 70.79369075 | I181: 5011.746651 | J181: 12318.10219 | K181: 14.60315456 | L181: 1033.811208 | M181: 15865.95678 | N181: 1459104.057 | O181: 1310093.954 | P181: 63745.80937
G182: 175 | H182: 70.42768978 | I182: 4960.059488 | J182: 12324.84571 | K182: 14.78615504 | L182: 1041.35474 | M182: 15936.56747 | N182: 1464089.96 | O182: 1322415.428 | P182: 64783.39235
G183: 176 | H183: 70.0612758 | I183: 4908.582367 | J183: 12330.78454 | K183: 14.96936203 | L183: 1048.772602 | M183: 16006.81195 | N183: 1469024.281 | O183: 1334743.243 | P183: 65828.45602
G184: 177 | H184: 69.69439119 | I184: 4857.308164 | J184: 12335.90724 | K184: 15.15280433 | L184: 1056.065473 | M184: 16076.68978 | N184: 1473907.226 | O184: 1347076.589 | P184: 66880.87506
G185: 178 | H185: 69.32696431 | I185: 4806.22798 | J185: 12340.19965 | K185: 15.33651778 | L185: 1063.23422 | M185: 16146.20046 | N185: 1478738.994 | O185: 1359414.643 | P185: 67940.5249
G186: 179 | H186: 68.95890888 | I186: 4755.331114 | J186: 12343.64469 | K186: 15.52054549 | L186: 1070.279882 | M186: 16215.3434 | N186: 1483519.774 | O186: 1371756.565 | P186: 69007.28195
G187: 180 | H187: 68.59012337 | I187: 4704.605024 | J187: 12346.22221 | K187: 15.70493824 | L187: 1077.203652 | M187: 16284.11791 | N187: 1488249.742 | O187: 1384101.498 | P187: 70081.02372
G188: 181 | H188: 68.22049032 | I188: 4654.0353 | J188: 12347.90875 | K188: 15.88975477 | L188: 1084.006861 | M188: 16352.52322 | N188: 1492929.062 | O188: 1396448.564 | P188: 71161.62898
G189: 182 | H189: 67.84987573 | I189: 4603.605636 | J189: 12348.67738 | K189: 16.07506206 | L189: 1090.690963 | M189: 16420.5584 | N189: 1497557.883 | O189: 1408796.857 | P189: 72248.97789
G190: 183 | H190: 67.47812834 | I190: 4553.297804 | J190: 12348.49749 | K190: 16.26093576 | L190: 1097.25751 | M190: 16488.22241 | N190: 1502136.334 | O190: 1421145.444 | P190: 73342.95213
G191: 184 | H191: 67.10507901 | I191: 4503.091628 | J191: 12347.33454 | K191: 16.44746042 | L191: 1103.708131 | M191: 16555.51401 | N191: 1506664.529 | O191: 1433493.36 | P191: 74443.43495
G192: 185 | H192: 66.73054 | I192: 4452.964968 | J192: 12345.1499 | K192: 16.63472993 | L192: 1110.044511 | M192: 16622.43182 | N192: 1511142.557 | O192: 1445839.602 | P192: 75550.31127
G193: 186 | H193: 66.3543043 | I193: 4402.893699 | J193: 12341.9006 | K193: 16.82284777 | L193: 1116.26836 | M193: 16688.97424 | N193: 1515570.487 | O193: 1458183.128 | P193: 76663.4677
G194: 187 | H194: 65.97614492 | I194: 4352.851698 | J194: 12337.5391 | K194: 17.01192746 | L194: 1122.381392 | M194: 16755.13947 | N194: 1519948.359 | O194: 1470522.848 | P194: 77782.79258
G195: 188 | H195: 65.59581417 | I195: 4302.810836 | J195: 12332.01306 | K195: 17.20209284 | L195: 1128.385285 | M195: 16820.92545 | N195: 1524276.191 | O195: 1482857.624 | P195: 78908.17592
G196: 189 | H196: 65.21304295 | I196: 4252.74097 | J196: 12325.26512 | K196: 17.39347845 | L196: 1134.281657 | M196: 16886.32987 | N196: 1528553.967 | O196: 1495186.263 | P196: 80039.50939
G197: 190 | H197: 64.82754001 | I197: 4202.609944 | J197: 12317.2326 | K197: 17.58622992 | L197: 1140.072023 | M197: 16951.35017 | N197: 1532781.642 | O197: 1507507.512 | P197: 81176.68623
G198: 191 | H198: 64.43899122 | I198: 4152.38359 | J198: 12307.84732 | K198: 17.78050431 | L198: 1145.757761 | M198: 17015.98343 | N198: 1536959.139 | O198: 1519820.052 | P198: 82319.60112
G199: 192 | H199: 64.04705881 | I199: 4102.025742 | J199: 12297.03529 | K199: 17.97647051 | L199: 1151.340064 | M199: 17080.22646 | N199: 1541086.343 | O199: 1532122.493 | P199: 83468.15003
G200: 193 | H200: =-1.34393815971233E-11*G200^6 + 9.02408723343472E-09*G200^5 - 2.28030818090474E-06*G200^4 + 0.000264659016695035*G200^3 - 0.0147099242574313*G200^2 + 0.267703381712636*G200 + 99.2306019728348 -> 63.6513806 | I200: =H200^2 -> 4051.498253 | J200: =H200*G200 -> 12284.71646 | K200: =6.71969079906456E-12*G200^6 - 4.51204361704262E-09*G200^5 + 1.14015409044543E-06*G200^4 - 0.000132329508252482*G200^3 + 0.00735496209176745*G200^2 - 0.13385168628156*G200 + 0.384698812573333 -> 18.17430962 | L200: =H200*K200 -> 1156.819899 | M200: 17144.07568 | N200: 1545163.105 | O200: 1544413.369 | P200: 84622.23001
G201: =G200+G$5 -> 194 | H201: 63.25156926 | I201: 4000.761014 | J201: 12270.80444 | K201: 18.37421529 | L201: 1162.197951 | M201: =M200+0.5*(H201+H200)*G$5 -> 17207.52715 | N201: =N200+0.5*(I201+I200)*G$5 -> 1549189.235 | O201: =O200+0.5*(J201+J200)*G$5 -> 1556691.129 | P201: =P200+0.5*(L201+L200)*G$5 -> 85781.73894
G202: 195 | H202: 62.8472115 | I202: 3949.771994 | J202: 12255.20624 | K202: 18.57639417 | L202: 1167.474573 | M202: 17270.57654 | N202: 1553164.502 | O202: 1568954.135 | P202: 86946.5752
G203: 196 | H203: 62.43786729 | I203: 3898.487272 | J203: 12237.82199 | K203: 18.78106627 | L203: 1172.649723 | M203: 17333.21908 | N203: 1557088.631 | O203: 1581200.649 | P203: 88116.63735
... 54 more rows
